fUSD/lending_fUSD_20260410
["ID","MTS","AMOUNT","RATE_DAILY","PERIOD"]
[420189569,1775765454410,-302.044454,0.000156,2]
[420189570,1775765454420,-302.044454,0.000156,2]
[420189571,1775765454438,-151.0,0.000156,2]
[420189572,1775765454454,-302.044454,0.000156,2]
[420189573,1775765454464,-151.0,0.000156,2]
[420189574,1775765454473,-211.625936,0.000156,2]
[420189575,1775765454483,-151.0,0.000156,2]
[420189576,1775765454493,-151.0,0.000156,2]
[420189577,1775765454503,-151.0,0.000156,2]
[420189578,1775765454512,-151.0,0.000156,2]
[420189579,1775765454538,-151.0,0.000156,2]
[420189580,1775765454548,-151.0,0.000156,2]
[420189581,1775765454558,-200.039446,0.000156,2]
[420189582,1775765454568,-200.039446,0.000156,2]
[420189583,1775765454578,-200.039446,0.000156,2]
[420189584,1775765454588,-200.039446,0.000156,2]
[420189585,1775765454597,-200.039446,0.000156,2]
[420189586,1775765454608,-200.039446,0.000156,2]
[420189587,1775765454619,-200.039446,0.000156,2]
[420189588,1775765454628,-200.039446,0.000156,2]
[420189589,1775765454639,-151.0,0.000156,2]
[420189590,1775765454651,-200.039446,0.000156,2]
[420189591,1775765454686,-151.0,0.000156,2]
[420189592,1775765454696,-200.039446,0.000156,2]
[420189593,1775765454706,-151.0,0.000156,2]
[420189594,1775765454716,-200.039446,0.000156,2]
[420189595,1775765454727,-560.754316,0.000156,2]
[420189596,1775765454739,-560.754316,0.000156,2]
[420189597,1775765454771,-151.0,0.000156,2]
[420189598,1775765454823,-200.039446,0.000156,2]
[420189599,1775765454832,-151.0,0.000156,2]
[420189600,1775765454847,-560.754316,0.000156,2]
[420189601,1775765454857,-560.754316,0.000156,2]
[420189602,1775765454868,-200.039446,0.000156,2]
[420189603,1775765454885,-200.039446,0.000156,2]
[420189604,1775765454895,-151.0,0.000156,2]
[420189605,1775765454911,-560.754316,0.000156,2]
[420189606,1775765454921,-200.039446,0.000156,2]
[420189607,1775765454930,-151.0,0.000156,2]
[420189608,1775765454950,-568.620173,0.000156,2]
[420189609,1775765454960,-560.754316,0.000156,2]
[420189610,1775765454970,-200.039446,0.000156,2]
[420189611,1775765454980,-151.0,0.000156,2]
[420189612,1775765454990,-568.620173,0.000156,2]
[420189613,1775765454999,-560.754316,0.000156,2]
[420189614,1775765455009,-151.0,0.000156,2]
[420189615,1775765455018,-568.620173,0.000156,2]
[420189616,1775765455028,-560.754316,0.000156,2]
[420189617,1775765455038,-568.620173,0.000156,2]
[420189618,1775765455047,-151.0,0.000156,2]
[420189619,1775765455056,-151.0,0.000156,2]
[420189620,1775765455066,-643.314136,0.000156,2]
[420189621,1775765455076,-560.754316,0.000156,2]
[420189622,1775765455085,-151.0,0.000156,2]
[420189623,1775765455095,-568.620173,0.000156,2]
[420189624,1775765455105,-643.314136,0.000156,2]
[420189625,1775765455135,-560.754316,0.000156,2]
[420189626,1775765455147,-151.0,0.000156,2]
[420189627,1775765455156,-568.620173,0.000156,2]
[420189628,1775765455166,-599.201506,0.000156,2]
[420189629,1775765455177,-643.314136,0.000156,2]
[420189630,1775765455187,-560.754316,0.000156,2]
[420189631,1775765455196,-151.0,0.000156,2]
[420189632,1775765455215,-568.620173,0.000156,2]
[420189633,1775765455243,-643.314136,0.000156,2]
[420189634,1775765455253,-599.201506,0.000156,2]
[420189635,1775765455263,-568.620173,0.000156,2]
[420189636,1775765455272,-599.201506,0.000156,2]
[420189637,1775765455289,-551.211002,0.000156,2]
[420189638,1775765455313,-151.0,0.000156,2]
[420189639,1775765455323,-560.754316,0.000156,2]
[420189640,1775765455334,-643.314136,0.000156,2]
[420189641,1775765455343,-599.201506,0.000156,2]
[420189642,1775765455354,-551.211002,0.000156,2]
[420189643,1775765455366,-151.0,0.000156,2]
[420189644,1775765455396,-568.620173,0.000156,2]
[420189645,1775765455426,-643.314136,0.000156,2]
[420189646,1775765455436,-551.211002,0.000156,2]
[420189647,1775765455446,-151.0,0.000156,2]
[420189648,1775765455456,-568.620173,0.000156,2]
[420189649,1775765455468,-643.314136,0.000156,2]
[420189650,1775765455487,-599.201506,0.000156,2]
[420189651,1775765455526,-551.211002,0.000156,2]
[420189652,1775765455537,-151.0,0.000156,2]
[420189653,1775765455557,-560.754316,0.000156,2]
[420189654,1775765455568,-568.620173,0.000156,2]
[420189655,1775765455594,-643.314136,0.000156,2]
[420189656,1775765455605,-599.201506,0.000156,2]
[420189657,1775765455615,-560.754316,0.000156,2]
[420189658,1775765455629,-207.716849,0.000156,2]
[420189659,1775765455638,-599.201506,0.000156,2]
[420189660,1775765455648,-560.754316,0.000156,2]
[420189661,1775765455658,-551.211002,0.000156,2]
[420189662,1775765455668,-568.620173,0.000156,2]
[420189663,1775765455678,-560.754316,0.000156,2]
[420189664,1775765455687,-599.201506,0.000156,2]
[420189665,1775765455697,-551.211002,0.000156,2]
[420189666,1775765455707,-551.211002,0.000156,2]
[420189667,1775765455739,-568.620173,0.000156,2]
[420189668,1775765455750,-643.314136,0.000156,2]
[420189669,1775765455759,-599.201506,0.000156,2]
[420189670,1775765455769,-551.211002,0.000156,2]
[420189671,1775765455778,-568.620173,0.000156,2]
[420189672,1775765455788,-643.314136,0.000156,2]
[420189673,1775765455797,-599.201506,0.000156,2]
[420189674,1775765455818,-151.0,0.000156,2]
[420189675,1775765455827,-568.620173,0.000156,2]
[420189676,1775765455836,-643.314136,0.000156,2]
[420189677,1775765455846,-551.211002,0.000156,2]
[420189678,1775765455858,-599.201506,0.000156,2]
[420189679,1775765455868,-643.314136,0.000156,2]
[420189680,1775765455889,-568.620173,0.000156,2]
[420189681,1775765455900,-551.211002,0.000156,2]
[420189682,1775765455909,-599.201506,0.000156,2]
[420189683,1775765455919,-551.211002,0.000156,2]
[420189684,1775765455929,-643.314136,0.000156,2]
[420189685,1775765455938,-551.211002,0.000156,2]
[420189686,1775765455963,-599.201506,0.000156,2]
[420189687,1775765455975,-151.0,0.000156,2]
[420189688,1775765455984,-643.314136,0.000156,2]
[420189689,1775765455993,-599.201506,0.000156,2]
[420189690,1775765456003,-151.0,0.000156,2]
[420189691,1775765456012,-643.314136,0.000156,2]
[420189692,1775765456022,-551.211002,0.000156,2]
[420189693,1775765456031,-599.201506,0.000156,2]
[420189694,1775765456040,-151.0,0.000156,2]
[420189695,1775765456049,-643.314136,0.000156,2]
[420189696,1775765456075,-551.211002,0.000156,2]
[420189697,1775765456103,-599.201506,0.000156,2]
[420189698,1775765456113,-151.0,0.000156,2]
[420189699,1775765456122,-551.211002,0.000156,2]
[420189700,1775765456133,-551.211002,0.000156,2]
[420189701,1775765456147,-151.0,0.000156,2]
[420189702,1775765456173,-151.0,0.000156,2]
[420189703,1775765456182,-151.0,0.000156,2]
[420189704,1775765456192,-151.0,0.000156,2]
[420189705,1775765456206,-151.0,0.000156,2]
[420189706,1775765456216,-151.0,0.000156,2]
[420189707,1775765456232,-151.0,0.000156,2]
[420189708,1775765456243,-209.664608,0.000156,2]
[420189709,1775765456254,-151.0,0.000156,2]
[420189710,1775765456264,-151.0,0.000156,2]
[420189711,1775765456275,-266.867003,0.000156,2]
[420189712,1775765456285,-151.0,0.000156,2]
[420189713,1775765456294,-151.0,0.000156,2]
[420189714,1775765456333,-151.0,0.000156,2]
[420189715,1775765456343,-151.0,0.000156,2]
[420189716,1775765456353,-151.0,0.000156,2]
[420189717,1775765456362,-151.0,0.000156,2]
[420189718,1775765456372,-151.0,0.000156,2]
[420189719,1775765456382,-151.0,0.000156,2]
[420189720,1775765456393,-151.0,0.000156,2]
[420189721,1775765456410,-151.0,0.000156,2]
[420189722,1775765456420,-151.0,0.000156,2]
[420189723,1775765456430,-151.0,0.000156,2]
[420189724,1775765456439,-151.0,0.000156,2]
[420189725,1775765456450,-151.0,0.000156,2]
[420189726,1775765456459,-151.0,0.000156,2]
[420189727,1775765456599,-174.653345,0.000156,2]
[420189728,1775765456609,-193.96292451,0.000156,2]
[420189729,1775765456620,-1845.7092116,0.000156,2]
[420189730,1775765456629,-155.74,0.00015606,2]
[420189731,1775765456638,-586.0,0.00015611,2]
[420189732,1775765456647,-150.0,0.00015614,2]
[420189733,1775765456656,-150.0,0.00015614,2]
[420189734,1775765456665,-150.0,0.00015614,2]
[420189735,1775765456690,-150.0,0.00015614,2]
[420189736,1775765456699,-150.0,0.00015614,2]
[420189737,1775765456709,-150.0,0.00015614,2]
[420189738,1775765456718,-192.205685,0.00015614,2]
[420189739,1775765456728,-151.0,0.00015614,2]
[420189740,1775765456738,-1047.0,0.00015614,2]
[420189741,1775765456747,-3524.0,0.00015614,2]
[420189742,1775765456766,-1365.358,0.00015614,2]
[420189743,1775765456791,-1264.0,0.00015614,2]
[420189744,1775765456800,-926.0,0.00015614,2]
[420189745,1775765456810,-1218.0,0.00015614,2]
[420189746,1775765456823,-151.0,0.00015614,2]
[420189747,1775765456831,-151.0,0.00015614,2]
[420189748,1775765456840,-151.0,0.00015614,2]
[420189749,1775765456869,-151.0,0.00015614,2]
[420189750,1775765456886,-151.0,0.00015614,2]
[420189751,1775765456895,-151.0,0.00015614,2]
[420189752,1775765456905,-1497.196304,0.00015614,2]
[420189753,1775765456914,-1497.196304,0.00015614,2]
[420189754,1775765456924,-752.202171,0.00015614,2]
[420189755,1775765456934,-611.537366,0.00015614,2]
[420189756,1775765456952,-1497.196304,0.00015614,2]
[420189757,1775765456977,-752.202171,0.00015614,2]
[420189758,1775765456987,-478.974931,0.00015614,2]
[420189759,1775765456996,-611.537366,0.00015614,2]
[420189760,1775765457009,-1497.196307,0.00015614,2]
[420189761,1775765457018,-151.0,0.00015614,2]
[420189762,1775765457027,-478.974931,0.00015614,2]
[420189763,1775765457059,-611.537366,0.00015614,2]
[420189764,1775765457071,-151.0,0.00015614,2]
[420189765,1775765457081,-611.537358,0.00015614,2]
[420189766,1775765457090,-151.0,0.00015614,2]
[420189767,1775765457101,-478.974931,0.00015614,2]
[420189768,1775765457111,-752.202171,0.00015614,2]
[420189769,1775765457122,-478.974931,0.00015614,2]
[420189770,1775765457157,-752.202177,0.00015614,2]
[420189771,1775765457167,-151.0,0.00015614,2]
[420189772,1775765457176,-151.0,0.00015614,2]
[420189773,1775765457189,-500.86665,0.00015614,2]
[420189774,1775765457198,-151.0,0.00015614,2]
[420189775,1775765457207,-500.86665,0.00015614,2]
[420189776,1775765457221,-151.0,0.00015614,2]
[420189777,1775765457230,-151.0,0.00015614,2]
[420189778,1775765457238,-500.86665,0.00015614,2]
[420189779,1775765457247,-500.86664,0.00015614,2]
[420189780,1775765457256,-153.614724,0.00015614,2]
[420189781,1775765457268,-153.614724,0.00015614,2]
[420189782,1775765457285,-153.614724,0.00015614,2]
[420189783,1775765457298,-222.906642,0.00015614,2]
[420189784,1775765457307,-153.614716,0.00015614,2]
[420189785,1775765457316,-222.906642,0.00015614,2]
[420189786,1775765457325,-222.906642,0.00015614,2]
[420189787,1775765457333,-222.906644,0.00015614,2]
[420189788,1775765457342,-185.0672408,0.00015633,2]
[420189789,1775765457351,-168.0,0.00015642,2]
[420189790,1775765457361,-1000.0,0.0001565,2]
[420189791,1775765457371,-1000.0,0.00015655,2]
[420189792,1775765457381,-222.13551218,0.00015663,2]
[420189793,1775765457390,-168.0,0.00015665,2]
[420189794,1775765457399,-586.0,0.00015677,2]
[420189795,1775765457408,-586.0,0.00015678,2]
[420189796,1775765457417,-151.0,0.00015678,2]
[420189797,1775765457427,-151.0,0.00015678,2]
[420189798,1775765457436,-156.751319,0.00015678,2]
[420189799,1775765457446,-151.0,0.00015678,2]
[420189800,1775765457456,-151.0,0.00015678,2]
[420189801,1775765457473,-730.45556208,0.0001568,2]
[420189802,1775765457496,-640.355,0.00015691,2]
[420189803,1775765457506,-664.0,0.00015692,2]
[420189804,1775765457517,-1000.0,0.00015697,2]
[420189805,1775765457526,-190.195494,0.000157,2]
[420189806,1775765457536,-190.195494,0.000157,2]
[420189807,1775765457545,-190.195494,0.000157,2]
[420189808,1775765457559,-190.195494,0.000157,2]
[420189809,1775765457607,-151.0,0.000157,2]
[420189810,1775765457621,-187.616305,0.000157,2]
[420189811,1775765457631,-187.616305,0.000157,2]
[420189812,1775765457640,-187.616305,0.000157,2]
[420189813,1775765457653,-187.616311,0.000157,2]
[420189814,1775765457663,-151.0,0.000157,2]
[420189815,1775765457678,-151.0,0.000157,2]
[420189816,1775765457688,-679.144545,0.000157,2]
[420189817,1775765457698,-151.0,0.000157,2]
[420189818,1775765457707,-679.144545,0.000157,2]
[420189819,1775765457723,-679.144545,0.000157,2]
[420189820,1775765457735,-679.144543,0.000157,2]
[420189821,1775765457797,-627.583619,0.000157,2]
[420189822,1775765457807,-627.583619,0.000157,2]
[420189823,1775765457816,-627.583619,0.000157,2]
[420189824,1775765457826,-627.583612,0.000157,2]
[420189825,1775765457835,-151.0,0.000157,2]
[420189826,1775765457844,-151.0,0.000157,2]
[420189827,1775765457856,-151.0,0.000157,2]
[420189828,1775765457866,-293.100128,0.000157,2]
[420189829,1775765457876,-151.0,0.000157,2]
[420189830,1775765457888,-293.100128,0.000157,2]
[420189831,1775765457898,-293.100128,0.000157,2]
[420189832,1775765457907,-151.0,0.000157,2]
[420189833,1775765457926,-293.10012,0.000157,2]
[420189834,1775765457936,-151.0,0.000157,2]
[420189835,1775765457946,-230.151936,0.000157,2]
[420189836,1775765457955,-151.0,0.000157,2]
[420189837,1775765457965,-151.0,0.000157,2]
[420189838,1775765457976,-151.0,0.000157,2]
[420189839,1775765457985,-151.0,0.000157,2]
[420189840,1775765458020,-248.963988,0.000157,2]
[420189841,1775765458033,-151.0,0.000157,2]
[420189842,1775765458043,-151.0,0.000157,2]
[420189843,1775765458052,-151.0,0.000157,2]
[420189844,1775765458061,-151.0,0.000157,2]
[420189845,1775765458070,-160.960737,0.000157,2]
[420189846,1775765458079,-151.0,0.000157,2]
[420189847,1775765458088,-160.960737,0.000157,2]
[420189848,1775765458097,-160.960737,0.000157,2]
[420189849,1775765458108,-160.960744,0.000157,2]
[420189850,1775765458119,-151.0,0.000157,2]
[420189851,1775765458128,-151.0,0.000157,2]
[420189852,1775765458137,-151.0,0.000157,2]
[420189853,1775765458147,-2520.565745,0.000157,2]
[420189854,1775765458159,-2520.565745,0.000157,2]
[420189855,1775765458193,-2520.565745,0.000157,2]
[420189856,1775765458210,-2520.565749,0.000157,2]
[420189857,1775765458219,-222.974682,0.000157,2]
[420189858,1775765458230,-151.0,0.000157,2]
[420189859,1775765458240,-151.0,0.000157,2]
[420189860,1775765458250,-151.0,0.000157,2]
[420189861,1775765458259,-151.0,0.000157,2]
[420189862,1775765458274,-151.0,0.000157,2]
[420189863,1775765458284,-166.18156578,0.000157,2]
[420189864,1775765458293,-359.866141,0.000157,2]
[420189865,1775765458302,-359.866141,0.000157,2]
[420189866,1775765458312,-359.866141,0.000157,2]
[420189867,1775765458322,-359.866146,0.000157,2]
[420189868,1775765458331,-712.205687,0.000157,2]
[420189869,1775765458344,-712.205687,0.000157,2]
[420189870,1775765458360,-314.034803,0.000157,2]
[420189871,1775765458370,-151.0,0.000157,2]
[420189872,1775765458379,-712.205687,0.000157,2]
[420189873,1775765458389,-441.011384,0.000157,2]
[420189874,1775765458398,-314.034803,0.000157,2]
[420189875,1775765458407,-151.0,0.000157,2]
[420189876,1775765458417,-712.205678,0.000157,2]
[420189877,1775765458427,-151.0,0.000157,2]
[420189878,1775765458436,-314.034803,0.000157,2]
[420189879,1775765458446,-441.011384,0.000157,2]
[420189880,1775765458455,-151.0,0.000157,2]
[420189881,1775765458467,-314.034803,0.000157,2]
[420189882,1775765458497,-441.011384,0.000157,2]
[420189883,1775765458507,-197.23913,0.000157,2]
[420189884,1775765458517,-441.011377,0.000157,2]
[420189885,1775765458526,-221.338949,0.000157,2]
[420189886,1775765458536,-176.910942,0.000157,2]
[420189887,1775765458545,-475.058674,0.000157,2]
[420189888,1775765458557,-197.23913,0.000157,2]
[420189889,1775765458594,-221.338949,0.000157,2]
[420189890,1775765458603,-176.910942,0.000157,2]
[420189891,1775765458613,-475.058674,0.000157,2]
[420189892,1775765458623,-197.23913,0.000157,2]
[420189893,1775765458632,-221.338949,0.000157,2]
[420189894,1775765458642,-176.910942,0.000157,2]
[420189895,1775765458651,-475.058674,0.000157,2]
[420189896,1775765458680,-197.239128,0.000157,2]
[420189897,1775765458693,-221.33895,0.000157,2]
[420189898,1775765458702,-176.910952,0.000157,2]
[420189899,1775765458712,-475.058681,0.000157,2]
[420189900,1775765458723,-151.0,0.000157,2]
[420189901,1775765458732,-293.785146,0.000157,2]
[420189902,1775765458742,-151.0,0.000157,2]
[420189903,1775765458755,-236.09646,0.000157,2]
[420189904,1775765458778,-151.0,0.000157,2]
[420189905,1775765458787,-151.0,0.000157,2]
[420189906,1775765458796,-151.0,0.000157,2]
[420189907,1775765458806,-185.0672408,0.000157,2]
[420189908,1775765458816,-151.0,0.000157,2]
[420189909,1775765458826,-151.0,0.000157,2]
[420189910,1775765458835,-151.0,0.000157,2]
[420189911,1775765458845,-200.0,0.000157,5]
[420189912,1775765458872,-204.830604,0.000157,2]
[420189913,1775765458886,-204.830604,0.000157,2]
[420189914,1775765458895,-204.830604,0.000157,2]
[420189915,1775765458904,-151.0,0.000157,2]
[420189916,1775765458914,-151.0,0.000157,2]
[420189917,1775765458924,-204.830594,0.000157,2]
[420189918,1775765458934,-151.0,0.000157,2]
[420189919,1775765458944,-815.370496,0.000157,2]
[420189920,1775765458954,-401.642941,0.000157,2]
[420189921,1775765458963,-228.149449,0.000157,2]
[420189922,1775765458973,-815.370496,0.000157,2]
[420189923,1775765458982,-401.642941,0.000157,2]
[420189924,1775765459008,-228.149449,0.000157,2]
[420189925,1775765459020,-401.642941,0.000157,2]
[420189926,1775765459030,-815.370496,0.000157,2]
[420189927,1775765459040,-228.149449,0.000157,2]
[420189928,1775765459049,-151.0,0.000157,2]
[420189929,1775765459059,-815.370498,0.000157,2]
[420189930,1775765459068,-401.642944,0.000157,2]
[420189931,1775765459078,-151.0,0.000157,2]
[420189932,1775765459088,-151.0,0.000157,2]
[420189933,1775765459108,-228.149454,0.000157,2]
[420189934,1775765459132,-466.827033,0.000157,2]
[420189935,1775765459142,-466.827033,0.000157,2]
[420189936,1775765459151,-466.827033,0.000157,2]
[420189937,1775765459160,-466.82703356,0.000157,2]
[420189938,1775765459170,-201.736274,0.000157,2]
[420189939,1775765459179,-302.044454,0.000157,2]
[420189940,1775765459212,-201.736274,0.000157,2]
[420189941,1775765459268,-302.044454,0.000157,2]
[420189942,1775765459278,-201.736274,0.000157,2]
[420189943,1775765459289,-151.0,0.000157,2]
[420189944,1775765459305,-302.044454,0.000157,2]
[420189945,1775765459316,-151.0,0.000157,2]
[420189946,1775765459325,-201.736271,0.000157,2]
[420189947,1775765459334,-302.044462,0.000157,2]
[420189948,1775765459343,-151.0,0.000157,2]
[420189949,1775765459355,-200.039446,0.000157,2]
[420189950,1775765459364,-200.039446,0.000157,2]
[420189951,1775765459374,-200.039446,0.000157,2]
[420189952,1775765459385,-151.0,0.000157,2]
[420189953,1775765459395,-560.754316,0.000157,2]
[420189954,1775765459405,-200.039438,0.000157,2]
[420189955,1775765459417,-151.0,0.000157,2]
[420189956,1775765459427,-560.754316,0.000157,2]
[420189957,1775765459437,-568.620173,0.000157,2]
[420189958,1775765459452,-151.0,0.000157,2]
[420189959,1775765459463,-643.314136,0.000157,2]
[420189960,1775765459472,-568.620173,0.000157,2]
[420189961,1775765459483,-599.201506,0.000157,2]
[420189962,1775765459493,-560.754316,0.000157,2]
[420189963,1775765459503,-151.0,0.000157,2]
[420189964,1775765459511,-551.211002,0.000157,2]
[420189965,1775765459523,-643.314136,0.000157,2]
[420189966,1775765459557,-568.620173,0.000157,2]
[420189967,1775765459573,-560.754317,0.000157,2]
[420189968,1775765459583,-599.201506,0.000157,2]
[420189969,1775765459592,-551.211002,0.000157,2]
[420189970,1775765459602,-568.620169,0.000157,2]
[420189971,1775765459612,-643.314136,0.000157,2]
[420189972,1775765459623,-599.201506,0.000157,2]
[420189973,1775765459644,-551.211002,0.000157,2]
[420189974,1775765459669,-643.31414,0.000157,2]
[420189975,1775765459679,-599.201516,0.000157,2]
[420189976,1775765459689,-151.0,0.000157,2]
[420189977,1775765459699,-551.211,0.000157,2]
[420189978,1775765459708,-151.0,0.000157,2]
[420189979,1775765459718,-151.0,0.000157,2]
[420189980,1775765459727,-151.0,0.000157,2]
[420189981,1775765459736,-151.0,0.000157,2]
[420189982,1775765459745,-151.0,0.000157,2]
[420189983,1775765459755,-25000.0,0.000157,3]
[420189984,1775765459765,-12530.7441075,0.000157,3]
[420189985,1775765461017,-372.34049029,0.000157,3]
[420189986,1775765461108,-12096.91540221,0.000157,3]
[420189987,1775765461118,-159.89,0.00015701,2]
[420189988,1775765461127,-733.548,0.00015706,2]
[420189989,1775765461155,-1528.0310074,0.00015708,2]
[420189990,1775765461164,-25000.0,0.00015709,3]
[420189991,1775765461173,-2230.48008811,0.00015709,3]
[420189992,1775765461185,-586.83220186,0.00015709,3]
[420189993,1775765461196,-1407.38003316,0.00015709,3]
[420189994,1775765461208,-400.58518184,0.00015709,3]
[420189995,1775765461255,-911.29223435,0.00015709,3]
[420189996,1775765461266,-1414.65637329,0.00015709,3]
[420189997,1775765461364,-383.45408857,0.00015475,2]
[420189998,1775765461497,-3389.54591143,0.00015475,2]
[420189999,1775765461519,-300.0,0.00015524,2]
[420190000,1775765461529,-1740.0,0.000156,2]
[420190001,1775765461539,-18048.77388739,0.00015709,3]
[420190002,1775765461549,-151.0,0.00015709,2]
[420190003,1775765461561,-151.0,0.00015709,2]
[420190004,1775765461570,-216.922787,0.00015709,2]
[420190005,1775765461581,-290.490616,0.00015709,2]
[420190006,1775765461608,-151.0,0.00015709,2]
[420190007,1775765461619,-11729.93187957,0.00015709,3]
[420190008,1775765461838,-163.88,0.00013699,2]
[420190009,1775765461848,-12632.40849942,0.00015709,3]
[420190010,1775765461859,-637.65962101,0.00015709,3]
[420190011,1775765461882,-25000.0,0.00015709,3]
[420190012,1775765461891,-404.77030832,0.00015722,2]
[420190013,1775765461900,-1000.0,0.00015743,2]
[420190014,1775765461910,-1000.0,0.00015753,2]
[420190015,1775765461918,-190.195494,0.00015756,2]
[420190016,1775765461928,-190.195494,0.00015756,2]
[420190017,1775765461938,-190.195494,0.00015756,2]
[420190018,1775765461970,-190.195489,0.00015756,2]
[420190019,1775765461985,-1000.0,0.00015766,2]
[420190020,1775765461994,-185.0672408,0.00015767,2]
[420190021,1775765462004,-10000.0,0.00015768,2]
[420190022,1775765462014,-187.78006525,0.00015777,2]
[420190023,1775765462023,-326.71651438,0.00015777,2]
[420190024,1775765462034,-151.62,0.00015778,2]
[420190025,1775765462077,-151.62,0.00015778,2]
[420190026,1775765462086,-151.62,0.00015778,2]
[420190027,1775765462096,-151.61,0.00015778,2]
[420190028,1775765462105,-1000.0,0.00015779,2]
[420190029,1775765462116,-828.84452544,0.00015788,2]
[420190030,1775765462128,-1000.0,0.00015789,2]
[420190031,1775765462171,-5000.0,0.000158,2]
[420190032,1775765462180,-2000.0,0.000158,2]
[420190033,1775765462188,-200.0,0.000158,5]
[420190034,1775765462200,-193.60696256,0.00015818,2]
[420190035,1775765462218,-1000.0,0.00015821,2]
[420190036,1775765462251,-1000.0,0.00015821,2]
[420190037,1775765462261,-500.0,0.00015821,2]
[420190038,1775765462271,-1000.0,0.00015833,2]
[420190039,1775765462282,-185.0672408,0.00015833,2]
[420190040,1775765462291,-150.0,0.00015864,2]
[420190041,1775765462301,-150.0,0.00015878,2]
[420190042,1775765462311,-500.0,0.0001589,2]
[420190043,1775765462320,-500.0,0.0001589,2]
[420190044,1775765462329,-2000.0,0.0001589,2]
[420190045,1775765462339,-4000.0,0.00015895,2]
[420190046,1775765462348,-2000.0,0.000159,2]
[420190047,1775765462358,-500.0,0.000159,2]
[420190048,1775765462368,-500.0,0.000159,2]
[420190049,1775765462377,-500.0,0.000159,2]
[420190050,1775765462387,-500.0,0.000159,2]
[420190051,1775765462396,-1528.0310074,0.000159,2]
[420190052,1775765462406,-166.18156578,0.000159,2]
[420190053,1775765462416,-600.0,0.000159,5]
[420190054,1775765462426,-185.0672408,0.000159,2]
[420190055,1775765462435,-12594.4354728,0.000159,2]
[420190056,1775765462446,-182.02756706,0.00015956,2]
[420190057,1775765462475,-178.47281084,0.00015956,2]
[420190058,1775765462484,-183.59846956,0.00015956,2]
[420190059,1775765462494,-5031.6692643,0.0001596,2]
[420190060,1775765462503,-1000.0,0.00015972,2]
[420190061,1775765462512,-2997.9,0.00015978,6]
[420190062,1775765462522,-246.89147301,0.00015984,2]
[420190063,1775765462531,-260.1064664,0.00015984,2]
[420190064,1775765462542,-236.83358101,0.00015984,2]
[420190065,1775765462552,-168.38968989,0.00015984,2]
[420190066,1775765462561,-173.41670211,0.00015984,2]
[420190067,1775765462571,-170.49576812,0.00015984,2]
[420190068,1775765462580,-171.5850159,0.00015984,2]